{"text_format":"1","workbook":"xlsx","n_sheets":1,"sheets":["srb dalmatinska"],"not_rendered":{"charts":0,"images":0,"macros":1,"external_links":0,"defined_names":4,"comments":0,"pivot_tables":0},"unopened":[],"bounds":{"document_bytes":16777216,"sheet_cells":100000,"rows_first":2000,"rows_last":500,"rows_between":2000,"halvings":0,"cell_chars":16384,"cell_head_chars":4096},"cells_cut":0,"cells_raw":0,"read":"whole","date_system":"1900"}

{"sheet":"srb dalmatinska","index":0,"n_rows":50,"n_cols":6,"rows_kept":50,"cut":false,"hidden":false,"merged":[[2,0,2,5]]}
[]
[]
["Troškovnik radova sanacije dijela Dalmatinske ulice u Srbu"]
["Red.br.","OPIS RADA","Jed.mj.","Količina","Jed.cij.","Cijena"]
[]
["1.","PRIPREMNI RADOVI"]
[]
[1,"Postavljanje privremene prometne signalizacije. Stavka obuhvaća postavljanje svih znakova i opreme prema projektu privremene prometne regulacije. U cijenu je uključen sav potreban rad i materijal za postavljanje znakova, ali i za uklanjanje istih po završetku radova.\n","paušal",1,null,{"$f":"+E8*D8","v":0}]
[]
[null,"PRIPREMNI RADOVI UKUPNO:",null,null,null,{"$f":"+F8","v":0}]
[]
["2.","ZEMLJANI RADOVI"]
[]
["2.1.","Zasijecanje rubova oštećenih asfaltnih površina koje se pripremaju za popravak novim asfaltiranjem.Obračun radova po m\" ispilanoga kolnika","m",300,null,{"$f":"+E14*D14","v":0}]
[]
["2.2.","Odstranjivanje postojeće kolničke konstrukcije uz profilirani rub, prema detaljima iz projekta. Rad obuhvata iskop, utovar materijala u prevozno sredstvo\n  Obračun radova:\nPo  kubičnom metru iskopanoga  materijala postojeće kolničke konstrukcije.","m3",{"$f":"430*2.5*0.3","v":322.5},null,{"$f":"E16*D16","v":0}]
[]
["2.3.","Planiranje i valjanje posteljice do projektiranog modula stišljivosti. Obračun po m2 izvedene podloge.","m2",{"$f":"430*2.5","v":1075},null,{"$f":"+E18*D18","v":0}]
[]
["2.4.","Odvoz viška iskopanog materijala na gradsku deponiju  Obračun po m3 materijala u sraslom stanju.","m3",{"$f":"+D16","v":322.5},null,{"$f":"+E20*D20","v":0}]
[]
[null,"ZEMLJANI RADOVI UKUPNO:",null,null,null,{"$f":"SUM(F14:F20)","v":0}]
[]
["3.","KOLNIČKA KONSTRUKCIJA"]
[]
["3.1.","Špricanje kolnika bitumenskom emulzijom prije nanošenja izravnavajućeg odnosno habajućeg sloja u količini od 0.3 kg/m2. Prethodno je potrebno očistiti kolnik. U cijenu ulazi čišćenje kolnika, nabava i doprema emulzije te sve radnje potrebne za potpuni završetak posla.\n  Obračun radova:\nPo  kvadratnom metru očišćene i premazane površine.","m2",{"$f":"430*2.5+170*5","v":1925},null,{"$f":"E26*D26","v":0}]
[]
["3.2.","Izrada podložnog zamjenskog sloja od drobljenog kamenog materijala ispod temelja zidova.\nSloj drobljenog kamenog materijala  ugrađuju se u debljini od 30 cm. Kriteriji za ocjenu kakvoće zamjenskog sloja: stupanj zbijenosti u odnosu na standardni Proktorov postupak Sz ≥ 100% , a modul stišljivosti mjeren kružnom pločom Ø 30cm Ms ≥ 40 MN/m2. \n  Obračun radova:\nObračun se vrši po kubičnom metru ugrađenog zamjenskog sloja.","m3",{"$f":"430*0.3*2.5","v":322.5},null,{"$f":"D28*E28","v":0}]
[]
["3.3.","Izrada nosivog sloja od mehanički stabiliziranog drobljenog kamenog materijala debljine25,00 cm. Rad obuhvaća dobavu, transport i ugradnju drobljenog kamenog materijala veličine zrna 0-60 mm u nosivi sloj prema projektu. Ovaj sloj se može raditi tek kada nadzorni inženjer primi posteljicu u pogledu ravnosti, projektiranih nagiba i pravilno izvedene odvodnje. Zahtjevi kvalitete za ugrađeni nosivi sloj: stupanj zbijenosti u odnosu na modificirani Proktorov postupak stupanj zbijenosti Sz=100%, Ms=100 MN/m2.\n  Obračun radova:\nPo  kubičnom metru ugrađenog materijala u zbijenom stanju.","m3",{"$f":"430*2.5*0.25","v":268.75},null,0]
[]
["3.4.","Izrada izravnavajućega  sloja od AC16 base 50/70 AG6, debljine 3,00- 6,00 cm. Ovaj sloj radi se na mjestima ulegnuća postojećega kolnika. Radovi obuhvaćaju nabavu materijala, proizvodnju mješavine, prijevoz do mjesta ugradnje, ugradnju i valjanje iste do potrebne zbijenosti. \n  Obračun radova:\nOvaj rad se mjeri i obračunava u tonama utošenoga materijala . ","t",48,null,0]
[]
["3.5.","Izrada habajućeg sloja kolnika od asfaltbetona AC11surf 50/70 AG2 debljine 5.0cm . Radovi obuhvaćaju nabavu materijala, proizvodnju mješavine i prijevoz do mjesta ugradnje, ugradnju i valjanje do potrebne zbijenosti.\n  Obračun radova:\nOvaj rad se mjeri i obračunava u kvadratnim metrima  gornje površine stvarno položenog sloja.","m2",3020,null,0]
[]
[null,"KOLNIČKA KONSTRUKCIJA UKUPNO:",null,null,null,{"$f":"SUM(F26:F34)","v":0}]
[]
[null,"REKAPITULACIJA:"]
[]
["1.","PRIPREMNI RADOVI:",null,null,null,{"$f":"+F10","v":0}]
["2.","ZEMLJANI RADOVI:",null,null,null,{"$f":"+F22","v":0}]
["3.","KOLNIČKA KONSTRUKCIJA:",null,null,null,{"$f":"+F36","v":0}]
[]
[]
[]
[]
[null,"Ukupno :",null,null,null,{"$f":"SUM(F40:F42)","v":0}]
[null,"Pdv",null,null,null,{"$f":"+F47*0.25","v":0}]
[null,"Sveukupno",null,null,null,{"$f":"+F47+F48","v":0}]
[null,"Napomena :\nobračun radova građevinska knjiga"]